bitfinex/quotes_BTCUSD_20260310
["timestamp","ask_amount","ask_price","bid_price","bid_amount"]
[1773171888100,0.03,70023.0,70010.0,0.00152]
[1773171888727,0.04971814,70023.0,70010.0,0.00152]
[1773171889105,0.04971814,70023.0,70014.0,0.0002]
[1773171889437,0.03,70022.0,70006.0,0.07162242]
[1773171889802,0.03,70020.0,70006.0,0.0002]
[1773171890636,0.03,70020.0,70006.0,0.00172]
[1773171890903,0.03,70019.0,70007.0,0.0246877]
[1773171891558,0.03,70019.0,70008.0,0.00152]
[1773171891886,0.07140629,70022.0,70010.0,0.07141836]
[1773171891887,0.03,70018.0,70010.0,0.07141836]
[1773171892861,0.03,70017.0,70006.0,0.07162231]
[1773171893085,0.03,70017.0,70005.0,0.0002]
[1773171893086,0.00152,70016.0,70005.0,0.0002]
[1773171893279,0.00152,70016.0,69998.0,0.00048]
[1773171893280,0.03,70014.0,70000.0,0.07317852]
[1773171893640,0.03,70014.0,70000.0,0.07177087]
[1773171893822,0.03,70014.0,70001.0,0.0246877]
[1773171893967,0.03,70012.0,70002.0,0.07142653]
[1773171894176,0.0714153,70013.0,70002.0,0.07142653]
[1773171894369,0.07124598,70013.0,70000.0,0.00034235]
[1773171894596,0.07124598,70013.0,70001.0,0.00152]
[1773171895061,0.03,70015.0,70001.0,0.00152]
[1773171896013,0.03,70013.0,70002.0,0.07142653]
[1773171897814,0.03,70013.0,70002.0,0.07165213]
[1773171898106,0.07141632,70012.0,70002.0,0.0002256]
[1773171898339,0.03,70011.0,70002.0,0.0002256]
[1773171899143,0.03,70011.0,70000.0,0.00054235]
[1773171899327,0.03,70009.0,70000.0,0.07197086]
[1773171899518,0.07141632,70012.0,70000.0,0.07197086]
[1773171899948,0.00152,70015.0,70001.0,0.0246877]
[1773171900158,0.07141237,70016.0,70002.0,0.09611423]
[1773171900373,0.03,70015.0,70002.0,0.09611423]
[1773171900590,0.00152,70021.0,70003.0,0.0246877]
[1773171900797,0.00152,70021.0,70004.0,0.00152]
[1773171901006,0.00152,70021.0,70004.0,0.0262077]
[1773171901243,0.03,70021.0,70004.0,0.00152]
[1773171901452,0.00152,70022.0,70000.0,0.00054235]
[1773171901453,0.03,70015.0,70000.0,0.00054235]
[1773171901662,0.03,70013.0,70000.0,0.07197011]
[1773171901879,0.07140307,70025.0,70001.0,0.0246877]
[1773171902115,0.0714051,70023.0,70002.0,0.07142653]
[1773171902315,0.0714051,70023.0,70003.0,0.0246877]
[1773171902541,0.0714051,70023.0,70004.0,0.00152]
[1773171902745,0.05019303,70022.0,70004.0,0.00152]
[1773171903031,0.03,70020.0,70004.0,0.00152]
[1773171903234,0.03,70020.0,70003.0,0.0246877]
[1773171903433,0.03,70020.0,70005.0,0.00152]
[1773171903796,0.07292409,70024.0,70006.0,0.0216877]
[1773171903955,0.03,70023.0,70006.0,0.0216877]
[1773171904392,0.03,70021.0,70007.0,0.09610912]
[1773171904521,0.03,70021.0,70007.0,0.07142142]
[1773171904878,0.03,70021.0,70007.0,0.09610912]
[1773171905035,0.03,70021.0,70008.0,0.0246877]
[1773171906943,0.10140799,70021.0,70009.0,0.07141938]
[1773171907146,0.10140799,70021.0,70010.0,0.00152]
[1773171907577,0.03,70020.0,70011.0,0.0246877]
[1773171907999,0.07140297,70026.0,70011.0,0.0246877]
[1773171908000,0.0713941,70034.0,70011.0,0.0246877]
[1773171908198,0.07139595,70032.0,70011.0,0.0246877]
[1773171908427,0.00022001,70035.0,70011.0,0.0246877]
[1773171908631,0.03,70036.0,70011.0,0.0246877]
[1773171909032,0.03,70036.0,70015.0,0.0246877]
[1773171909252,0.10139215,70036.0,70015.0,0.0246877]
[1773171909633,0.03,70036.0,70015.0,0.0246877]
[1773171910431,0.03,70036.0,70017.0,0.0246877]
[1773171910834,0.03,70035.0,70017.0,0.0246877]
[1773171911171,0.03,70035.0,70019.0,0.0246877]
[1773171911514,0.07852797,70040.0,70019.0,0.0246877]
[1773171911746,0.00562,70040.0,70019.0,0.0246877]
[1773171911945,0.03562,70040.0,70019.0,0.0246877]
[1773171912977,0.03562,70040.0,70022.0,0.0246877]
[1773171912978,0.03,70039.0,70022.0,0.0246877]
[1773171913207,0.03,70039.0,70023.0,0.0714051]
[1773171913379,0.03,70039.0,70024.0,0.0262077]
[1773171913970,0.00562,70040.0,70024.0,0.0262077]
[1773171914194,0.02371908,70049.0,70024.0,0.0246877]
[1773171914535,0.02523908,70049.0,70024.0,0.00011233]
[1773171914733,0.02371908,70047.0,70024.0,0.00011233]
[1773171914951,0.04671415,70048.0,70025.0,0.00152]
[1773171914952,0.00022001,70040.0,70025.0,0.00152]
[1773171915292,0.03,70038.0,70026.0,0.00152]
[1773171915513,0.03,70038.0,70027.0,0.0246877]
[1773171915913,0.03,70038.0,70029.0,0.0246877]
[1773171916321,0.03022001,70040.0,70029.0,0.0246877]
[1773171916634,0.03,70038.0,70027.0,0.00152]
[1773171916838,0.0716082,70040.0,70024.0,0.00163233]
[1773171916839,0.03,70036.0,70024.0,0.00163233]
[1773171917361,0.10139235,70036.0,70024.0,0.00163233]
[1773171918080,0.03,70034.0,70024.0,0.00011233]
[1773171918283,0.03152,70034.0,70024.0,0.00011233]
[1773171918621,0.05398783,70032.0,70016.0,0.00152]
[1773171918833,0.03,70030.0,70014.0,0.07141428]
[1773171919001,0.03011235,70030.0,70015.0,0.0262077]
[1773171919511,0.03011235,70030.0,70017.0,0.0259064]
[1773171919726,0.10151035,70030.0,70017.0,0.0259064]
[1773171919925,0.10151035,70030.0,70018.0,0.00152]
[1773171920153,0.03,70028.0,70018.0,0.00152]
[1773171920344,0.03,70028.0,70016.0,0.07141224]
[1773171920697,0.07160807,70040.0,70017.0,0.02676381]
[1773171920905,0.07160807,70040.0,70017.0,0.02687616]
[1773171921343,0.03,70039.0,70018.0,0.0714102]
[1773171921505,0.00022001,70040.0,70019.0,0.02828381]
[1773171921858,0.07138501,70043.0,70021.0,0.02673621]
[1773171922151,0.07138064,70047.0,70021.0,0.02673621]
[1773171922458,0.00022001,70048.0,70022.0,0.661428]
[1773171922695,0.00022001,70048.0,70020.0,0.2140731]
[1773171922696,0.00022001,70055.0,70031.0,0.02673621]
[1773171922893,0.00022001,70055.0,70033.0,0.02673621]
[1773171923207,0.00022001,70047.0,70033.0,0.02673621]
[1773171923368,0.00022001,70047.0,70034.0,0.07139389]
[1773171923569,0.07697988,70068.0,70035.0,0.02673621]
[1773171923772,0.00022001,70062.0,70038.0,0.02676381]
[1773171923977,0.00022001,70062.0,70040.0,0.02676381]
[1773171924377,0.00022001,70062.0,70041.0,0.00152]
[1773171924378,0.03022001,70062.0,70041.0,0.00152]
[1773171924583,0.03022001,70062.0,70042.0,0.02676381]
[1773171925139,0.10196041,70062.0,70042.0,0.02676381]
[1773171925312,0.10196041,70062.0,70034.0,0.07139389]
[1773171925313,0.00039882,70061.0,70043.0,0.00152]
[1773171925523,0.03,70059.0,70043.0,0.00152]
[1773171925734,0.03,70059.0,70039.0,0.00152]
[1773171925735,0.00204983,70058.0,70039.0,0.00152]
[1773171925935,0.00204983,70058.0,70035.0,0.07139185]
[1773171925936,0.00204983,70058.0,70035.0,0.00152]
[1773171926525,0.00204983,70058.0,70033.0,0.00152]
[1773171926732,0.00204983,70058.0,70028.0,0.07139797]
[1773171926939,0.00204983,70058.0,70032.0,0.00152]
[1773171927959,0.03,70056.0,70033.0,0.07139491]
[1773171928172,0.00152,70055.0,70033.0,0.07139491]
[1773171928982,0.03,70056.0,70033.0,0.07139491]
[1773171928983,0.00152,70054.0,70033.0,0.07139491]
[1773171930014,0.00141497,70051.0,70032.0,0.00152]
[1773171930894,0.03,70052.0,70033.0,0.02593831]
[1773171931214,0.00152,70051.0,70033.0,0.02745831]
[1773171931372,0.00252,70051.0,70033.0,0.02745831]
[1773171931571,0.00152,70051.0,70033.0,0.02745831]
[1773171931779,0.00152,70051.0,70033.0,0.02593831]
[1773171932014,0.00152,70051.0,70034.0,0.00152]
[1773171932322,0.03,70049.0,70035.0,0.07139287]
[1773171932913,0.03,70047.0,70033.0,0.07139287]
[1773171933481,0.03,70047.0,70034.0,0.02593831]
[1773171933982,0.07137758,70050.0,70034.0,0.02593831]
[1773171933983,0.03,70046.0,70034.0,0.02593831]
[1773171934390,0.03,70046.0,70036.0,0.02593831]
[1773171934992,0.07137141,70058.0,70036.0,0.02593831]
[1773171935195,0.0713685,70059.0,70036.0,0.02593831]
[1773171935574,0.07288841,70061.0,70036.0,0.02593831]
[1773171935575,0.00152,70061.0,70036.0,0.02593831]
[1773171935777,0.07136351,70064.0,70041.0,0.02593831]
[1773171936094,0.03,70064.0,70043.0,0.02593831]
[1773171936294,0.03,70064.0,70044.0,0.0713837]
[1773171936495,0.03,70064.0,70045.0,0.02593831]
[1773171937248,0.00562,70068.0,70045.0,0.02593831]
[1773171937499,0.05774601,70074.0,70045.0,0.02593831]
[1773171937699,0.07310313,70075.0,70047.0,0.02593831]
[1773171938264,0.03,70074.0,70050.0,0.07137758]
[1773171938470,0.03,70074.0,70051.0,0.05083205]
[1773171938716,0.00022001,70065.0,70052.0,0.02593831]
[1773171939263,0.00022001,70072.0,70052.0,0.02593831]
[1773171940205,0.00022001,70072.0,70053.0,0.00152]
[1773171940402,0.03,70070.0,70052.0,0.09731292]
[1773171940601,0.03,70070.0,70054.0,0.00152]
[1773171940986,0.03,70070.0,70052.0,0.09731292]
[1773171941408,0.03,70070.0,70052.0,0.07137461]
[1773171941819,0.03,70070.0,70051.0,0.07137656]
[1773171941820,0.19324105,70070.0,70051.0,0.07137656]
[1773171942019,0.03,70070.0,70051.0,0.07137656]
[1773171942235,0.03,70070.0,70049.0,0.07137657]
[1773171942526,0.03,70068.0,70052.0,0.07137554]
[1773171942730,0.00152,70067.0,70051.0,0.00152]
[1773171943271,0.00152,70067.0,70049.0,0.07289815]
[1773171943649,0.00152,70067.0,70045.0,0.00037493]
[1773171943810,0.00152,70067.0,70045.0,0.07175749]
[1773171944326,0.00152,70067.0,70045.0,0.09766389]
[1773171944541,0.03,70065.0,70045.0,0.07175749]
[1773171944735,0.03,70065.0,70046.0,0.0259064]
[1773171945586,0.03,70066.0,70046.0,0.0259064]
[1773171945858,0.03,70066.0,70048.0,0.0259064]
[1773171946506,0.07135941,70068.0,70048.0,0.0259064]
[1773171946507,0.03,70065.0,70049.0,0.0713786]
[1773171946756,0.03,70065.0,70052.0,0.0259064]
[1773171946936,0.03,70065.0,70054.0,0.02545925]
[1773171947311,0.07135914,70070.0,70054.0,0.02545925]
[1773171947508,0.03,70071.0,70054.0,0.02545925]
[1773171948166,0.03,70071.0,70055.0,0.00152]
[1773171948458,0.03,70071.0,70056.0,0.02525565]
[1773171949227,0.03,70069.0,70057.0,0.07137045]
[1773171949425,0.03,70069.0,70057.0,0.0966261]
[1773171949838,0.03,70069.0,70046.0,0.07138166]
[1773171950099,0.03,70069.0,70047.0,0.0264616]
[1773171950230,0.00148,70068.0,70047.0,0.0264616]
[1773171951248,0.00148,70068.0,70046.0,0.00148]
[1773171951249,0.03,70066.0,70046.0,0.00148]
[1773171951686,0.03,70066.0,70045.0,0.00037493]
[1773171952126,0.03,70066.0,70045.0,0.07175701]
[1773171952744,0.03,70066.0,70045.0,0.00037493]
[1773171952919,0.03,70066.0,70044.0,0.00148]
[1773171953120,0.0303744,70066.0,70044.0,0.00148]
[1773171953552,0.03,70064.0,70045.0,0.07138268]
[1773171955523,0.03,70062.0,70044.0,0.00148]
[1773171955725,0.03,70062.0,70040.0,0.10198835]
[1773171955726,0.03,70059.0,70040.0,0.0071]
[1773171955958,0.03,70059.0,70024.0,0.07160362]
[1773171955959,0.03,70049.0,70024.0,0.07160362]
[1773171956160,0.03,70047.0,70027.0,0.07160093]
[1773171957532,0.03,70045.0,70030.0,0.02433234]
[1773171958653,0.03,70045.0,70029.0,0.07139899]
[1773171958654,0.03,70045.0,70029.0,0.07287899]
[1773171958880,0.03,70045.0,70035.0,0.0002]
[1773171959315,0.03,70045.0,70027.0,0.0002]
[1773171959539,0.03,70043.0,70027.0,0.0002]
[1773171959737,0.00148,70042.0,70027.0,0.0002]
[1773171959977,0.00148,70042.0,70018.0,0.07140983]
[1773171959978,0.00148,70042.0,70017.0,0.0001436]
[1773171959979,0.03,70039.0,70017.0,0.0001436]
[1773171960724,0.03,70039.0,70017.0,0.00025599]
[1773171960934,0.17205132,70039.0,70017.0,0.00025599]
[1773171961518,0.03,70037.0,70017.0,0.00025599]
[1773171961720,0.07138981,70038.0,70012.0,0.10445399]
[1773171961721,0.07138981,70038.0,70016.0,1e-08]
[1773171961722,0.03,70029.0,70016.0,1e-08]
[1773171961920,0.03,70029.0,70012.0,0.00562]
[1773171961921,0.00148,70028.0,70012.0,0.00562]
[1773171962112,0.00148,70028.0,70013.0,0.02593831]
[1773171962719,0.03148,70028.0,70013.0,0.02593831]
[1773171963602,0.03,70026.0,70015.0,0.02593831]
[1773171964193,0.03,70026.0,70012.0,0.00562]
[1773171964375,0.0300588,70026.0,70012.0,0.0770363]
[1773171965024,0.0300588,70026.0,70013.0,0.02593831]
[1773171965679,0.03,70024.0,70013.0,0.09735331]
[1773171966075,0.03,70024.0,70013.0,0.09755331]
[1773171966277,0.03,70024.0,70013.0,0.071615]
[1773171966505,0.03,70024.0,70014.0,0.02584902]
[1773171967747,0.03,70022.0,70014.0,0.09726282]
[1773171968005,0.0714051,70023.0,69996.0,0.0002]
[1773171968006,0.03,70020.0,69996.0,0.0002]
[1773171968180,0.03,70014.0,69996.0,0.0002]
[1773171968326,0.03,70012.0,69996.0,0.0002]
[1773171968534,0.03,70012.0,69998.0,0.07211005]
[1773171968734,0.03,70012.0,69998.0,0.0721103]
[1773171969161,0.03,70009.0,69989.0,0.09457894]
[1773171969354,0.00148,70008.0,69989.0,0.07163931]
[1773171969704,0.00148,70008.0,69989.0,0.09457894]
[1773171970057,0.03,70006.0,69991.0,0.04827367]
[1773171970271,0.00148,70012.0,69992.0,0.02293963]
[1773171970705,0.07140918,70019.0,69992.0,0.02293963]
[1773171970909,0.0210119,70017.0,69989.0,0.09457894]
[1773171971108,0.03,70008.0,69989.0,0.0002]
[1773171971311,0.03,70002.0,69989.0,0.0002]
[1773171971517,0.07140918,70019.0,69989.0,0.0002]
[1773171971518,0.00148,70006.0,69992.0,0.02293963]
[1773171971866,0.07140918,70019.0,69992.0,0.02293963]
[1773171971867,0.00148,70010.0,69992.0,0.02293963]
[1773171972318,0.00148,70011.0,69994.0,0.02293963]
[1773171972510,0.00148,70011.0,69994.0,0.02305198]
[1773171972849,0.00148,70011.0,69996.0,0.02293963]
[1773171973080,0.03,70017.0,69996.0,0.02293963]
[1773171973271,0.03,70017.0,69994.0,0.00011235]
[1773171973272,0.03148,70017.0,69997.0,0.00148]
[1773171973478,0.03,70016.0,69998.0,0.02293963]
[1773171973928,0.03148,70016.0,69998.0,0.02293963]
[1773171974470,0.10141326,70015.0,69999.0,0.07142959]
[1773171974680,0.10141326,70015.0,70000.0,0.02293963]
[1773171975486,0.10141326,70015.0,70000.0,0.02441963]
[1773171976512,0.10141326,70015.0,70001.0,0.07142755]
[1773171976733,0.10141326,70015.0,70001.0,0.09436718]
[1773171977043,0.03,70014.0,70002.0,0.02293963]
[1773171978007,0.07289243,70016.0,70002.0,0.02293963]
[1773171978008,0.03,70015.0,70002.0,0.02293963]
[1773171978905,0.10141378,70015.0,70002.0,0.09436581]
[1773171979150,0.10141378,70015.0,70003.0,0.07142551]
[1773171980418,0.10141378,70015.0,69997.0,0.07143163]
[1773171980419,0.03,70011.0,69996.0,0.00148]
[1773171980624,0.03,70007.0,69994.0,0.07154655]
[1773171980862,0.03,70005.0,69994.0,0.00011235]
[1773171981118,0.04729516,70005.0,69994.0,0.00031235]
[1773171981330,0.03,70005.0,69995.0,0.0213173]
[1773171981580,0.00148,70004.0,69995.0,0.0213173]
[1773171981879,0.00148,70011.0,69995.0,0.0213173]
[1773171982079,0.03,70018.0,69995.0,0.0213173]
[1773171982278,0.00148,70014.0,69995.0,0.0213173]
[1773171983492,0.00148,70014.0,69997.0,0.0213173]
[1773171983678,0.03,70012.0,69996.0,0.07143265]
[1773171983880,0.03,70012.0,69996.0,0.09274995]
[1773171984079,0.03,70012.0,69996.0,0.09422995]
[1773171984490,0.00148,70014.0,69994.0,0.0717461]
[1773171984491,0.03,70005.0,69994.0,0.0717461]
[1773171984693,0.03148,70005.0,69994.0,0.00031235]
[1773171984873,0.03148,70005.0,69989.0,0.0215173]
[1773171984874,0.0422737,70003.0,69989.0,0.0002]
[1773171985075,0.00148,70005.0,69989.0,0.07163964]
[1773171985076,0.03,70001.0,69989.0,0.07163964]
[1773171985297,0.03011223,70001.0,69989.0,0.0002]
[1773171985508,0.03,69999.0,69989.0,0.0002]
[1773171985697,0.00148,69998.0,69989.0,0.0002]
[1773171986013,0.00148,69998.0,69985.0,0.0626009]
[1773171986391,0.00148,69998.0,69985.0,0.06186451]
[1773171986591,0.00148,69998.0,69984.0,0.07706461]
[1773171986997,0.00148,69998.0,69984.0,0.00562]
[1773171987400,0.03,69996.0,69984.0,0.00562]
[1773171987622,0.03,69994.0,69984.0,0.00562]
[1773171988615,0.03,69994.0,69985.0,0.0002]
[1773171988993,0.03,69994.0,69985.0,5.279e-05]
[1773171989436,0.03,69992.0,69985.0,5.279e-05]
[1773171989638,0.03148,69992.0,69985.0,5.279e-05]
[1773171991075,0.04175716,69992.0,69984.0,0.00562]
[1773171991279,0.04175716,69992.0,69974.0,0.07145441]
[1773171991280,0.00994789,69991.0,69975.0,1e-08]
[1773171991491,0.00994789,69987.0,69975.0,1e-08]
[1773171991690,0.03994789,69986.0,69975.0,1e-08]
[1773171991979,0.00148,69985.0,69975.0,1e-08]
[1773171992183,0.00148,69985.0,69976.0,0.0213173]
[1773171992798,0.03148,69985.0,69976.0,0.0213173]
[1773171993850,0.03,69983.0,69975.0,1e-08]
[1773171994267,0.03,69983.0,69970.0,0.0213173]
[1773171994806,0.03,69983.0,69973.0,0.0213173]
[1773171995264,0.21238161,70005.0,69973.0,0.0213173]
[1773171995466,0.07291877,69993.0,69973.0,0.0227973]
[1773171995800,0.07291877,69993.0,69979.0,0.0213173]
[1773171996010,0.07143571,69995.0,69979.0,0.0213173]
[1773171996216,0.07291154,69998.0,69979.0,0.0213173]
[1773171996443,0.17981785,70007.0,69978.0,0.07145102]
[1773171996444,0.00148,70007.0,69980.0,0.16323912]
[1773171996654,0.00148,70007.0,69981.0,0.0227973]
[1773171996901,0.21344407,70011.0,69981.0,0.0227973]
[1773171996902,0.14202673,70011.0,69981.0,0.0227973]
[1773171997113,0.00148,70010.0,69981.0,0.0227973]
[1773171998147,0.07141938,70009.0,69983.0,0.0213173]
[1773171998623,0.07141938,70009.0,69984.0,0.00148]
[1773171998805,0.07141938,70009.0,69985.0,0.0213173]
[1773171999156,0.07141938,70009.0,69987.0,0.0213173]
[1773171999560,0.07141938,70009.0,69988.0,0.00148]
[1773171999755,0.0216791,70008.0,69989.0,0.0213173]
[1773171999989,0.07142142,70007.0,69991.0,0.07143775]
[1773172000521,0.07142142,70007.0,69992.0,0.00148]
[1773172001179,0.00148,70010.0,69993.0,0.0213173]
[1773172001386,0.07289844,70010.0,69995.0,0.0213173]
[1773172001799,0.00148,70010.0,69995.0,0.0213173]
[1773172002009,0.07289873,70010.0,69995.0,0.0213173]
[1773172002265,0.07289873,70010.0,69996.0,0.07143265]
[1773172002484,0.0216791,70009.0,69992.0,0.00148]
[1773172003006,0.07289873,70010.0,69994.0,0.0213173]
[1773172003199,0.00148,70010.0,69994.0,0.0213173]
[1773172003409,0.00148,70010.0,69986.0,0.07144208]
[1773172003410,0.0216791,70009.0,69986.0,0.09275938]
[1773172003799,0.0216791,70009.0,69992.0,0.00148]
[1773172004021,0.0216791,70009.0,69992.0,0.00248]
[1773172004255,0.0714204,70008.0,69993.0,0.07143571]
[1773172004532,0.07289846,70010.0,69993.0,0.07143571]
[1773172004533,0.07289866,70010.0,69994.0,0.0213173]
[1773172004984,0.07289866,70010.0,69995.0,0.00148]
[1773172005184,0.0216791,70009.0,69993.0,0.07128853]
[1773172005404,0.03,70006.0,69993.0,0.07128853]
[1773172006171,0.03,70006.0,69994.0,0.0213173]
[1773172006374,0.03,70007.0,69994.0,0.0213173]
[1773172007180,0.10142186,70007.0,69994.0,0.0213173]
[1773172008217,0.10142186,70007.0,69995.0,0.07143367]
[1773172008635,0.10142186,70007.0,69991.0,0.0002]
[1773172008636,0.03,70005.0,69991.0,0.0002]
[1773172008850,0.03,70001.0,69991.0,0.0002]
[1773172009033,0.04568656,69999.0,69991.0,0.0002]
[1773172009196,0.00148,69998.0,69991.0,0.0002]
[1773172009585,0.00148,69998.0,69991.0,0.07163759]
[1773172009805,0.00148,69998.0,69991.0,0.0002]
[1773172010006,0.00148,69998.0,69991.0,0.07163774]
[1773172010205,0.00148,69998.0,69991.0,0.0002]
[1773172010632,0.00148,70003.0,69992.0,0.01577718]
[1773172010834,0.00148,70007.0,69992.0,0.01725718]
[1773172011395,0.00022001,70007.0,69992.0,0.01725718]
[1773172011615,0.03,70011.0,69992.0,0.01725718]
[1773172011816,0.15063638,70018.0,69992.0,0.01725718]
[1773172011817,0.00148,70022.0,69992.0,0.01725718]
[1773172012016,0.00022001,70023.0,69992.0,0.01725718]
[1773172012230,0.00022001,70030.0,70001.0,0.01577718]
[1773172012434,0.00022001,70030.0,70004.0,0.07142449]
[1773172012614,0.03022001,70030.0,70005.0,0.01577718]
[1773172012812,0.03,70027.0,70006.0,0.00148]
[1773172013040,0.03,70027.0,70007.0,0.01577718]
[1773172013316,0.03011243,70027.0,70007.0,0.01577718]
[1773172013825,0.03,70026.0,70007.0,0.01562994]
[1773172014439,0.03,70026.0,70007.0,0.01662994]
[1773172014640,0.03,70026.0,70009.0,0.01577718]
[1773172014843,0.03,70025.0,70009.0,0.01577718]
[1773172015671,0.03,70025.0,70010.0,0.00148]
[1773172016287,0.03,70022.0,70008.0,0.0714204]
[1773172016513,0.03,70022.0,70011.0,0.00148]
[1773172016858,0.03,70022.0,70012.0,0.07141632]
[1773172017589,0.03,70021.0,70012.0,0.07141632]
[1773172018473,0.03,70018.0,70006.0,0.07142244]
[1773172018674,0.03,70018.0,70007.0,0.00148]
[1773172018880,0.03,70018.0,70008.0,0.0714204]
[1773172019199,0.10141052,70018.0,70008.0,0.0714204]
[1773172019359,0.03,70016.0,70001.0,0.07142671]
[1773172019558,0.07141052,70018.0,70001.0,0.07142755]
[1773172019559,0.03,70010.0,70001.0,0.07142755]
[1773172019765,0.04611638,70008.0,70000.0,0.07165755]
[1773172020373,0.04611638,70008.0,70001.0,0.07142755]
[1773172020576,0.03,70008.0,70001.0,0.07142755]
[1773172020803,0.07289052,70018.0,70003.0,0.07142551]
[1773172021014,0.07289071,70018.0,70004.0,0.01710994]
[1773172021188,0.00148,70021.0,70004.0,0.01710994]
[1773172021408,0.07140377,70025.0,70004.0,0.01710994]
[1773172021608,0.07288307,70026.0,70004.0,0.01710994]
[1773172021927,0.04611638,70021.0,70004.0,0.00148]
[1773172022126,0.04611638,70021.0,70003.0,0.07142551]
[1773172022301,0.04611638,70021.0,70005.0,0.00148]
[1773172022499,0.03,70019.0,70005.0,0.00148]
[1773172022808,0.03,70019.0,70006.0,0.00148]
[1773172022809,0.03,70017.0,70006.0,0.00148]
[1773172023007,0.03,70017.0,69980.0,0.16323912]
[1773172023008,0.03,70009.0,69992.0,0.07143626]
[1773172023371,0.04611638,70007.0,69993.0,0.00148]
[1773172023927,0.0714102,70018.0,69993.0,0.00148]
[1773172023928,0.0714102,70018.0,69995.0,0.01577718]
[1773172024133,0.03148,70017.0,69995.0,0.01577718]
[1773172024748,0.03148,70017.0,69994.0,0.04843956]
[1773172024749,0.04611638,70013.0,69996.0,0.00148]
[1773172024920,0.04611638,70011.0,69997.0,0.07143163]
[1773172025121,0.03,70011.0,69997.0,0.07143163]
[1773172025967,0.00022001,70007.0,69997.0,0.07143163]
[1773172026645,0.03,70010.0,69998.0,0.01577718]
[1773172027090,0.03,70009.0,69999.0,0.08720677]
[1773172027857,0.00022001,70028.0,70000.0,0.01577718]
[1773172028061,0.03023,70025.0,70001.0,0.01577718]
[1773172028313,0.00022001,70028.0,70001.0,0.01577718]
[1773172028634,0.00022001,70036.0,70011.0,0.01577718]
[1773172028908,0.00022001,70036.0,70013.0,0.01577718]
[1773172028909,0.07170356,70036.0,70013.0,0.01577718]
[1773172029121,0.03,70035.0,70015.0,0.01577718]
[1773172030578,0.00031097,70036.0,70015.0,0.01577718]
[1773172030966,0.07170287,70036.0,70015.0,0.01577718]
[1773172031141,0.00031097,70036.0,70017.0,0.01577718]
[1773172031310,0.07170291,70036.0,70017.0,0.01577718]
[1773172031709,0.03,70035.0,70017.0,0.01577718]
[1773172034024,0.10139306,70035.0,70018.0,0.0714102]
[1773172034252,0.03,70035.0,70018.0,0.0714102]
[1773172034448,0.03,70035.0,70019.0,0.01577718]
[1773172034699,0.03,70035.0,70020.0,0.01725718]
[1773172034885,0.10139303,70035.0,70020.0,0.00148]
[1773172035099,0.03,70031.0,70020.0,0.00148]
[1773172035271,0.04611638,70031.0,70020.0,0.00148]
[1773172036206,0.03,70029.0,70021.0,0.0712599]
[1773172036956,0.03,70028.0,70021.0,0.0712599]
[1773172037166,0.03,70028.0,70018.0,0.07140714]
[1773172037167,0.03,70022.0,70018.0,0.00148]
[1773172037384,0.00562,70040.0,70018.0,0.00148]
[1773172037594,0.07170345,70036.0,70019.0,0.01577718]
[1773172038002,0.08781983,70036.0,70020.0,0.07140816]
[1773172038417,0.03,70035.0,70020.0,0.07140816]
[1773172038830,0.04611638,70035.0,70020.0,0.07140816]
[1773172039249,0.03,70031.0,70021.0,0.00148]
[1773172039461,0.04209925,70029.0,70021.0,0.00148]
[1773172040103,0.03,70027.0,70019.0,0.07140918]
[1773172040532,0.04209925,70027.0,70019.0,0.07140918]
[1773172042054,0.11350074,70027.0,70019.0,0.07140918]
[1773172042460,0.10140149,70027.0,70019.0,0.07140918]
[1773172042664,0.10140149,70027.0,70000.0,0.16349158]
[1773172042665,0.01209925,70022.0,70008.0,0.07141974]
[1773172042868,0.03,70017.0,70009.0,0.00148]
[1773172043656,0.00148,70023.0,70009.0,0.00148]
[1773172043860,0.41249655,70071.0,70009.0,0.00148]
[1773172043861,0.08349314,70034.0,70010.0,0.01320528]
[1773172044076,0.0716139,70035.0,70012.0,0.01320528]
[1773172044077,0.03,70031.0,70012.0,0.01320528]
[1773172048199,0.04209925,70029.0,70013.0,0.0714153]
[1773172048403,0.03,70029.0,70014.0,0.01320528]
[1773172048638,0.03,70029.0,70016.0,0.01320528]
[1773172049232,0.03,70028.0,70016.0,0.01320528]
[1773172049916,0.03,70028.0,70016.0,0.01305803]
[1773172050210,0.01209925,70034.0,70016.0,0.01305803]
[1773172050211,0.07161313,70035.0,70017.0,0.07141122]
[1773172050416,0.03,70034.0,70018.0,0.01320528]
[1773172050628,0.03,70034.0,70017.0,0.07141122]
[1773172050807,0.07161313,70035.0,70019.0,0.00148]
[1773172050808,0.04209925,70030.0,70019.0,0.00148]
[1773172051237,0.03,70030.0,70020.0,0.01320528]
[1773172051860,0.03,70034.0,70020.0,0.01320528]
[1773172052287,0.03,70034.0,70021.0,0.07140714]
[1773172053095,0.03,70032.0,70021.0,0.07140714]
[1773172054138,0.03,70031.0,70021.0,0.08461242]
[1773172054318,1e-08,70040.0,70023.0,0.04654671]
[1773172054463,1e-08,70050.0,70031.0,0.504838]
[1773172054660,1e-08,70050.0,70030.0,0.16326158]
[1773172054661,0.07137131,70057.0,70032.0,0.01468528]
[1773172055084,0.03,70056.0,70032.0,0.01468528]
[1773172055592,0.03,70056.0,70025.0,0.00023]
[1773172055593,0.03,70052.0,70025.0,0.00023]
[1773172055800,0.03,70048.0,70026.0,0.01468528]
[1773172055998,0.03,70046.0,70026.0,0.01468528]
[1773172056195,0.03,70044.0,70028.0,0.01320528]
[1773172056561,0.04209925,70044.0,70029.0,0.01468528]
[1773172056878,0.04209925,70044.0,70032.0,0.001]
[1773172057081,0.04209925,70044.0,70029.0,0.01468528]
[1773172057921,0.03,70045.0,70029.0,0.01468528]
[1773172058746,0.03,70045.0,70031.0,0.01320528]
[1773172059329,0.03,70042.0,70030.0,0.07139797]
[1773172059659,0.03,70042.0,70031.0,0.00148]
[1773172060004,0.03,70042.0,70025.0,0.07163232]
[1773172060182,0.03,70038.0,70023.0,0.0714957]
[1773172060382,0.19423176,70041.0,70023.0,0.0714957]